[Event "Late-Titled-Tuesday-Blitz-March-26-2024"]
[Site "Chess.com"]
[Date "2024.03.26"]
[Round "2"]
[White "Supelyel"]
[Black "Andrei_Skvortsov"]
[Result "0-1"]
[WhiteElo "2405"]
[BlackElo "2713"]
[TimeControl "180+1"]
[EndTime "14:18:43 PDT"]
[Termination "Andrei_Skvortsov won by resignation"]

1. c4 {[%clk 0:02:49.4]} 1... g6 {[%clk 0:02:58.9]} 2. Nc3 {[%clk 0:02:46.3]}
2... Bg7 {[%clk 0:02:59.3]} 3. g3 {[%clk 0:02:44.1]} 3... e6 {[%clk 0:02:58.4]}
4. Bg2 {[%clk 0:02:44.1]} 4... Ne7 {[%clk 0:02:56.9]} 5. e3 {[%clk 0:02:43.2]}
5... d5 {[%clk 0:02:54]} 6. cxd5 {[%clk 0:02:30.8]} 6... exd5 {[%clk 0:02:54.9]}
7. d4 {[%clk 0:02:31.3]} 7... c6 {[%clk 0:02:50.1]} 8. Nge2 {[%clk 0:02:24]}
8... Nd7 {[%clk 0:02:50.2]} 9. O-O {[%clk 0:02:23.7]} 9... Nf6 {[%clk 0:02:50]}
10. b3 {[%clk 0:02:23.6]} 10... O-O {[%clk 0:02:49.3]} 11. a4 {[%clk 0:02:24]}
11... Re8 {[%clk 0:02:49.3]} 12. Ba3 {[%clk 0:02:24.4]} 12... Nf5 {[%clk
0:02:50]} 13. Qc2 {[%clk 0:02:24.5]} 13... Nd6 {[%clk 0:02:49.5]} 14. Bxd6
{[%clk 0:02:20.4]} 14... Qxd6 {[%clk 0:02:49.1]} 15. Rab1 {[%clk 0:02:18.7]}
15... Bf5 {[%clk 0:02:48.2]} 16. Qb2 {[%clk 0:01:51.4]} 16... Bxb1 {[%clk
0:02:43.3]} 17. Rxb1 {[%clk 0:01:50.5]} 17... a5 {[%clk 0:02:43.7]} 18. b4
{[%clk 0:01:48]} 18... axb4 {[%clk 0:02:43.6]} 19. Qxb4 {[%clk 0:01:48.9]} 19...
Qxb4 {[%clk 0:02:44.1]} 20. Rxb4 {[%clk 0:01:49.8]} 20... Ra7 {[%clk 0:02:44.7]}
21. h3 {[%clk 0:01:41.5]} 21... Bf8 {[%clk 0:02:44.6]} 22. Rb3 {[%clk
0:01:41.2]} 22... Bd6 {[%clk 0:02:44.9]} 23. Kf1 {[%clk 0:01:40]} 23... Nd7
{[%clk 0:02:45.2]} 24. h4 {[%clk 0:01:35.1]} 24... b6 {[%clk 0:02:43.4]} 25. Bh3
{[%clk 0:01:35.3]} 25... f5 {[%clk 0:02:44]} 26. g4 {[%clk 0:01:34.3]} 26...
fxg4 {[%clk 0:02:44]} 27. Bxg4 {[%clk 0:01:34.5]} 27... Nf6 {[%clk 0:02:44.7]}
28. Bf3 {[%clk 0:01:33]} 28... Rb8 {[%clk 0:02:45.1]} 29. Nc1 {[%clk 0:01:27.1]}
29... Kf7 {[%clk 0:02:45.2]} 30. Nd3 {[%clk 0:01:27.5]} 30... Ke7 {[%clk
0:02:45.4]} 31. Ke2 {[%clk 0:01:27.4]} 31... Kd7 {[%clk 0:02:45.5]} 32. Bg2
{[%clk 0:01:26.7]} 32... Kc7 {[%clk 0:02:45.9]} 33. Rb2 {[%clk 0:01:25.1]} 33...
Re8 {[%clk 0:02:43.8]} 34. Rc2 {[%clk 0:01:24.9]} 34... Ra5 {[%clk 0:02:39.6]}
35. Nb5+ {[%clk 0:01:20.3]} 35... Kd7 {[%clk 0:02:33.1]} 36. Bh3+ {[%clk
0:01:20.2]} 36... Ke7 {[%clk 0:02:33.4]} 37. Rxc6 {[%clk 0:01:19.7]} 37... Bb8
{[%clk 0:02:26.2]} 38. Rxb6 {[%clk 0:01:17.6]} 38... Rxa4 {[%clk 0:02:26.5]} 39.
Rb7+ {[%clk 0:01:17.1]} 39... Kf8 {[%clk 0:02:27]} 40. Nc5 {[%clk 0:01:12.6]}
40... Ra2+ {[%clk 0:02:27.2]} 41. Kf1 {[%clk 0:01:12.1]} 41... Ne4 {[%clk
0:02:15.3]} 42. Rxb8 {[%clk 0:00:52.1]} 42... Rxb8 {[%clk 0:02:05.3]} 43. Nd7+
{[%clk 0:00:52.1]} 43... Kg7 {[%clk 0:01:57]} 44. Nxb8 {[%clk 0:00:52.1]} 44...
Nxf2 {[%clk 0:01:45.5]} 45. Bd7 {[%clk 0:00:45.6]} 45... Nd1 {[%clk 0:01:41.3]}
46. Nc6 {[%clk 0:00:35.2]} 46... Nxe3+ {[%clk 0:01:40.5]} 47. Kg1 {[%clk
0:00:34.6]} 47... Rg2+ {[%clk 0:01:38.4]} 48. Kh1 {[%clk 0:00:34.3]} 48... Rd2
{[%clk 0:01:26.7]} 49. Nc7 {[%clk 0:00:25.7]} 49... Kf6 {[%clk 0:01:10.8]} 50.
Nb4 {[%clk 0:00:22.4]} 50... Ke7 {[%clk 0:01:08.8]} 51. Bc6 {[%clk 0:00:19.4]}
51... Kd6 {[%clk 0:01:07.8]} 52. Ncxd5 {[%clk 0:00:19.9]} 52... Nxd5 {[%clk
0:01:04.7]} 53. Bxd5 {[%clk 0:00:20.3]} 53... Rxd4 {[%clk 0:01:04.7]} 54. Bg8
{[%clk 0:00:19.6]} 54... Rxb4 {[%clk 0:01:05.2]} 55. Bxh7 {[%clk 0:00:20.3]}
55... Rxh4+ {[%clk 0:01:05.9]} 0-1

[Event "Late-Titled-Tuesday-Blitz-March-26-2024"]
[Site "Chess.com"]
[Date "2024.03.26"]
[Round "2"]
[White "Orest_Vovk"]
[Black "TigrVShlyape"]
[Result "0-1"]
[WhiteElo "2598"]
[BlackElo "2898"]
[TimeControl "180+1"]
[EndTime "14:18:44 PDT"]
[Termination "TigrVShlyape won by resignation"]

1. g4 {[%clk 0:02:54.2]} 1... d5 {[%clk 0:02:57]} 2. Bg2 {[%clk 0:02:52.8]} 2...
c6 {[%clk 0:02:56.5]} 3. h3 {[%clk 0:02:53]} 3... e5 {[%clk 0:02:55]} 4. d4
{[%clk 0:02:52.9]} 4... Nd7 {[%clk 0:02:49.2]} 5. c4 {[%clk 0:02:50.5]} 5...
dxc4 {[%clk 0:02:24.5]} 6. dxe5 {[%clk 0:02:45.7]} 6... Nxe5 {[%clk 0:02:14.9]}
7. Qxd8+ {[%clk 0:02:45]} 7... Kxd8 {[%clk 0:02:15.2]} 8. Nc3 {[%clk 0:02:40.3]}
8... h5 {[%clk 0:02:02]} 9. g5 {[%clk 0:02:35.4]} 9... Ne7 {[%clk 0:01:44.8]}
10. Bf4 {[%clk 0:02:34.2]} 10... N5g6 {[%clk 0:01:22.7]} 11. O-O-O+ {[%clk
0:02:33.4]} 11... Ke8 {[%clk 0:01:22.2]} 12. Bc7 {[%clk 0:02:14.7]} 12... Be6
{[%clk 0:01:21]} 13. e4 {[%clk 0:01:57.3]} 13... Rc8 {[%clk 0:01:15.6]} 14. Bd6
{[%clk 0:01:52.9]} 14... Rd8 {[%clk 0:01:12.4]} 15. Nge2 {[%clk 0:01:23.8]}
15... Nc8 {[%clk 0:01:10.2]} 16. Bc7 {[%clk 0:01:16.9]} 16... Rd7 {[%clk
0:01:00.5]} 17. Rxd7 {[%clk 0:00:53.2]} 17... Bxd7 {[%clk 0:00:58.5]} 18. f4
{[%clk 0:00:34.2]} 18... Bd6 {[%clk 0:00:47.9]} 19. Bxd6 {[%clk 0:00:31.7]}
19... Nxd6 {[%clk 0:00:48.8]} 20. Rd1 {[%clk 0:00:30.1]} 20... Nc8 {[%clk
0:00:31.1]} 21. Rd4 {[%clk 0:00:19.7]} 21... Nb6 {[%clk 0:00:29.4]} 22. a4
{[%clk 0:00:18.6]} 22... a5 {[%clk 0:00:29.2]} 23. e5 {[%clk 0:00:13.5]} 23...
Nh4 {[%clk 0:00:26.1]} 24. Bf1 {[%clk 0:00:11.4]} 24... Nf5 {[%clk 0:00:25.4]}
25. Rd1 {[%clk 0:00:09.4]} 25... Ke7 {[%clk 0:00:25.7]} 26. Nd4 {[%clk
0:00:08.5]} 26... Nxd4 {[%clk 0:00:25]} 27. Rxd4 {[%clk 0:00:09.4]} 27... h4
{[%clk 0:00:22.5]} 28. Ne4 {[%clk 0:00:07]} 28... Nxa4 {[%clk 0:00:19]} 29. Rxc4
{[%clk 0:00:05.8]} 29... b5 {[%clk 0:00:17.7]} 30. Rd4 {[%clk 0:00:05.8]} 30...
Be6 {[%clk 0:00:17.4]} 31. Nd6 {[%clk 0:00:05.7]} 31... g6 {[%clk 0:00:17.1]}
32. Bg2 {[%clk 0:00:05.1]} 32... Nc5 {[%clk 0:00:16.3]} 33. Bxc6 {[%clk
0:00:04.2]} 33... Nb3+ {[%clk 0:00:16.4]} 34. Kb1 {[%clk 0:00:03.7]} 34... Nxd4
{[%clk 0:00:17.3]} 35. Bg2 {[%clk 0:00:03.7]} 35... Bf5+ {[%clk 0:00:17.2]} 0-1

[Event "Late-Titled-Tuesday-Blitz-March-26-2024"]
[Site "Chess.com"]
[Date "2024.03.26"]
[Round "2"]
[White "xakevicius91"]
[Black "GMG"]
[Result "0-1"]
[WhiteElo "2539"]
[BlackElo "2791"]
[TimeControl "180+1"]
[EndTime "14:18:47 PDT"]
[Termination "GMG won by resignation"]

1. e4 {[%clk 0:03:00.9]} 1... c6 {[%clk 0:02:59.3]} 2. d4 {[%clk 0:03:00.6]}
2... d5 {[%clk 0:02:59.9]} 3. e5 {[%clk 0:03:01.3]} 3... Bf5 {[%clk 0:02:59.8]}
4. Nf3 {[%clk 0:02:58.2]} 4... e6 {[%clk 0:02:59.9]} 5. Be2 {[%clk 0:02:58.8]}
5... Ne7 {[%clk 0:02:54.3]} 6. O-O {[%clk 0:02:57.6]} 6... Ng6 {[%clk
0:02:52.3]} 7. a4 {[%clk 0:02:56.4]} 7... a6 {[%clk 0:02:45.2]} 8. Nbd2 {[%clk
0:02:55.4]} 8... Nf4 {[%clk 0:02:44.9]} 9. c3 {[%clk 0:02:46.8]} 9... Nxe2+
{[%clk 0:02:30.7]} 10. Qxe2 {[%clk 0:02:46.8]} 10... c5 {[%clk 0:02:19]} 11.
dxc5 {[%clk 0:02:41.3]} 11... Bxc5 {[%clk 0:02:19.9]} 12. Nb3 {[%clk 0:02:41.3]}
12... Be7 {[%clk 0:02:17.1]} 13. Nbd4 {[%clk 0:02:40.7]} 13... Bg6 {[%clk
0:02:17.2]} 14. g3 {[%clk 0:02:31.1]} 14... O-O {[%clk 0:02:15.4]} 15. h4 {[%clk
0:02:30.9]} 15... h6 {[%clk 0:02:14.6]} 16. Kg2 {[%clk 0:02:30.1]} 16... Nc6
{[%clk 0:02:13.7]} 17. Bf4 {[%clk 0:02:22.9]} 17... Be4 {[%clk 0:02:12.2]} 18.
Kg1 {[%clk 0:02:13.5]} 18... Bc5 {[%clk 0:02:03.3]} 19. Rfd1 {[%clk 0:02:08.9]}
19... Qb6 {[%clk 0:01:55.1]} 20. Be3 {[%clk 0:02:05.1]} 20... Bxf3 {[%clk
0:01:49.1]} 21. Nxf3 {[%clk 0:02:00.9]} 21... Bxe3 {[%clk 0:01:48.2]} 22. fxe3
{[%clk 0:02:01.6]} 22... Na5 {[%clk 0:01:42.2]} 23. b4 {[%clk 0:01:57.6]} 23...
Nc4 {[%clk 0:01:42]} 24. Rd4 {[%clk 0:01:56.8]} 24... Rac8 {[%clk 0:01:41.2]}
25. Kg2 {[%clk 0:01:32.1]} 25... Qc7 {[%clk 0:01:25.5]} 26. e4 {[%clk
0:01:30.8]} 26... Nb6 {[%clk 0:01:16.1]} 27. Rc1 {[%clk 0:01:25.9]} 27... dxe4
{[%clk 0:01:13]} 28. Qxe4 {[%clk 0:01:22.7]} 28... Nxa4 {[%clk 0:01:13.2]} 29.
Qg4 {[%clk 0:01:04]} 29... Rfd8 {[%clk 0:01:05.4]} 30. Rf4 {[%clk 0:01:02.6]}
30... Nxc3 {[%clk 0:00:59.4]} 31. Rd4 {[%clk 0:00:36.5]} 31... Qb6 {[%clk
0:00:50.8]} 32. Rxd8+ {[%clk 0:00:34.2]} 32... Qxd8 {[%clk 0:00:51.7]} 33. Rc2
{[%clk 0:00:20.1]} 33... Nd5 {[%clk 0:00:37.2]} 34. Re2 {[%clk 0:00:20.3]} 34...
Qb6 {[%clk 0:00:35.5]} 35. Qe4 {[%clk 0:00:18.5]} 35... Qxb4 {[%clk 0:00:30.9]}
36. Qd3 {[%clk 0:00:12.3]} 36... Qc4 {[%clk 0:00:27.9]} 37. Qd2 {[%clk
0:00:11.8]} 37... Qc3 {[%clk 0:00:26.3]} 38. Kh3 {[%clk 0:00:02.2]} 38... Qxf3
{[%clk 0:00:24.2]} 0-1

[Event "Late-Titled-Tuesday-Blitz-March-26-2024"]
[Site "Chess.com"]
[Date "2024.03.26"]
[Round "2"]
[White "Kavyev_Ruslan"]
[Black "Byniolus"]
[Result "0-1"]
[WhiteElo "2397"]
[BlackElo "2739"]
[TimeControl "180+1"]
[EndTime "14:18:49 PDT"]
[Termination "Byniolus won on time"]

1. d4 {[%clk 0:03:00.9]} 1... d6 {[%clk 0:03:00]} 2. Nf3 {[%clk 0:03:00]} 2...
Bg4 {[%clk 0:02:59.8]} 3. e3 {[%clk 0:02:51.8]} 3... Nf6 {[%clk 0:02:59]} 4. b3
{[%clk 0:02:51.5]} 4... e6 {[%clk 0:02:59]} 5. Bb2 {[%clk 0:02:51.9]} 5... Be7
{[%clk 0:02:59.5]} 6. Nbd2 {[%clk 0:02:51.8]} 6... O-O {[%clk 0:02:59.6]} 7. Bd3
{[%clk 0:02:51.6]} 7... d5 {[%clk 0:02:59.5]} 8. h3 {[%clk 0:02:51]} 8... Bh5
{[%clk 0:02:59.6]} 9. c4 {[%clk 0:02:47]} 9... c6 {[%clk 0:02:59.1]} 10. O-O
{[%clk 0:02:45.5]} 10... Nbd7 {[%clk 0:02:59.4]} 11. Qc2 {[%clk 0:02:45.1]}
11... Bg6 {[%clk 0:02:59.8]} 12. Ne5 {[%clk 0:02:43.1]} 12... Nxe5 {[%clk
0:02:59.1]} 13. dxe5 {[%clk 0:02:42.3]} 13... Nd7 {[%clk 0:02:58.6]} 14. f4
{[%clk 0:02:28.5]} 14... Bxd3 {[%clk 0:02:43.6]} 15. Qxd3 {[%clk 0:02:27.6]}
15... Nc5 {[%clk 0:02:41.8]} 16. Qe2 {[%clk 0:02:24.5]} 16... dxc4 {[%clk
0:02:40.9]} 17. Nxc4 {[%clk 0:02:24.4]} 17... Qd3 {[%clk 0:02:41]} 18. Qf3
{[%clk 0:01:49.4]} 18... Rfd8 {[%clk 0:02:33.6]} 19. Rad1 {[%clk 0:01:46.2]}
19... Qe4 {[%clk 0:02:29.2]} 20. Nd6 {[%clk 0:01:44.6]} 20... Qxf3 {[%clk
0:02:26.4]} 21. gxf3 {[%clk 0:01:40.7]} 21... Rd7 {[%clk 0:02:20.5]} 22. Bd4
{[%clk 0:01:35.5]} 22... Na6 {[%clk 0:02:14.3]} 23. Rd2 {[%clk 0:00:58.8]} 23...
Bxd6 {[%clk 0:01:57.4]} 24. exd6 {[%clk 0:00:54.6]} 24... Rxd6 {[%clk
0:01:58.3]} 25. Rg2 {[%clk 0:00:49.5]} 25... g6 {[%clk 0:01:58.5]} 26. Be5
{[%clk 0:00:49.1]} 26... Rd3 {[%clk 0:01:54.5]} 27. e4 {[%clk 0:00:45.3]} 27...
Rad8 {[%clk 0:01:49.4]} 28. f5 {[%clk 0:00:39.4]} 28... exf5 {[%clk 0:01:22.8]}
29. exf5 {[%clk 0:00:39.3]} 29... R8d5 {[%clk 0:01:21.9]} 30. f4 {[%clk
0:00:30.4]} 30... f6 {[%clk 0:01:16.9]} 31. Bxf6 {[%clk 0:00:18.8]} 31... Rxf5
{[%clk 0:01:17.8]} 32. Bg5 {[%clk 0:00:18.4]} 32... Nc7 {[%clk 0:01:04.1]} 33.
h4 {[%clk 0:00:18.2]} 33... Ne6 {[%clk 0:00:55.3]} 34. Bh6 {[%clk 0:00:12.8]}
34... Kf7 {[%clk 0:00:39.6]} 35. Re2 {[%clk 0:00:11.7]} 35... Rd4 {[%clk
0:00:30.4]} 36. Rfe1 {[%clk 0:00:10.9]} 36... Rd6 {[%clk 0:00:29.9]} 37. Re3
{[%clk 0:00:05]} 37... Rh5 {[%clk 0:00:25.3]} 38. Bg5 {[%clk 0:00:04.3]} 38...
h6 {[%clk 0:00:26]} 39. f5 {[%clk 0:00:02.4]} 39... gxf5 {[%clk 0:00:26.2]} 0-1

[Event "Late-Titled-Tuesday-Blitz-March-26-2024"]
[Site "Chess.com"]
[Date "2024.03.26"]
[Round "2"]
[White "Karttunen"]
[Black "olga-belka"]
[Result "1-0"]
[WhiteElo "2716"]
[BlackElo "2348"]
[TimeControl "180+1"]
[EndTime "14:18:49 PDT"]
[Termination "Karttunen won on time"]

1. d4 {[%clk 0:02:59.7]} 1... Nf6 {[%clk 0:02:58.9]} 2. c4 {[%clk 0:02:59.4]}
2... g6 {[%clk 0:02:58.9]} 3. Nc3 {[%clk 0:02:58.9]} 3... d5 {[%clk 0:02:58.8]}
4. cxd5 {[%clk 0:02:58.6]} 4... Nxd5 {[%clk 0:02:58.6]} 5. e4 {[%clk 0:02:58]}
5... Nxc3 {[%clk 0:02:58.5]} 6. bxc3 {[%clk 0:02:58.9]} 6... Bg7 {[%clk
0:02:58.5]} 7. Be3 {[%clk 0:02:58.7]} 7... c5 {[%clk 0:02:58.1]} 8. Qd2 {[%clk
0:02:57.7]} 8... Qa5 {[%clk 0:02:54.6]} 9. Rb1 {[%clk 0:02:53.7]} 9... a6 {[%clk
0:02:51.2]} 10. Rc1 {[%clk 0:02:53.7]} 10... O-O {[%clk 0:02:47]} 11. f4 {[%clk
0:02:40.3]} 11... Rd8 {[%clk 0:02:45.9]} 12. d5 {[%clk 0:02:38.4]} 12... e6
{[%clk 0:02:36.4]} 13. c4 {[%clk 0:02:37.8]} 13... Qxd2+ {[%clk 0:02:31.9]} 14.
Kxd2 {[%clk 0:02:28.3]} 14... b5 {[%clk 0:02:13.4]} 15. Bxc5 {[%clk 0:02:23.3]}
15... bxc4 {[%clk 0:02:11.5]} 16. Bxc4 {[%clk 0:02:22.8]} 16... Bb7 {[%clk
0:02:00.5]} 17. Bb3 {[%clk 0:01:50.1]} 17... exd5 {[%clk 0:01:52.6]} 18. e5
{[%clk 0:01:50]} 18... Nc6 {[%clk 0:01:37.9]} 19. Nf3 {[%clk 0:01:46.7]} 19...
a5 {[%clk 0:01:34]} 20. Bb6 {[%clk 0:01:43.3]} 20... Rdc8 {[%clk 0:01:29.9]} 21.
Ba4 {[%clk 0:01:25.7]} 21... Bf8 {[%clk 0:01:24.9]} 22. Nd4 {[%clk 0:01:19.5]}
22... Bb4+ {[%clk 0:01:15.7]} 23. Ke3 {[%clk 0:01:19]} 23... Nxd4 {[%clk
0:01:05.2]} 24. Bxd4 {[%clk 0:01:18.8]} 24... Rc4 {[%clk 0:00:51.1]} 25. Bb5
{[%clk 0:01:14.6]} 25... Rcc8 {[%clk 0:00:45.1]} 26. a4 {[%clk 0:00:56.7]} 26...
Ba3 {[%clk 0:00:39]} 27. Ra1 {[%clk 0:00:54.2]} 27... Bc5 {[%clk 0:00:31.4]} 28.
Rhc1 {[%clk 0:00:50.5]} 28... Bxd4+ {[%clk 0:00:28.2]} 29. Kxd4 {[%clk
0:00:50.9]} 29... Kf8 {[%clk 0:00:25.3]} 30. Bd7 {[%clk 0:00:49]} 30... Rxc1
{[%clk 0:00:21.8]} 31. Rxc1 {[%clk 0:00:49.9]} 31... Rb8 {[%clk 0:00:13.4]} 32.
Bb5 {[%clk 0:00:48.6]} 32... Rc8 {[%clk 0:00:10.8]} 33. Rxc8+ {[%clk 0:00:43.4]}
33... Bxc8 {[%clk 0:00:10.8]} 34. g3 {[%clk 0:00:42.8]} 34... Bb7 {[%clk
0:00:09.7]} 35. Kc5 {[%clk 0:00:42.9]} 35... Ke7 {[%clk 0:00:08.8]} 36. Kb6
{[%clk 0:00:43]} 36... Bc8 {[%clk 0:00:08.7]} 37. Kxa5 {[%clk 0:00:41.4]} 37...
f6 {[%clk 0:00:06.9]} 38. exf6+ {[%clk 0:00:40.9]} 38... Kxf6 {[%clk 0:00:06.9]}
39. Kb4 {[%clk 0:00:40.9]} 39... Kf5 {[%clk 0:00:06]} 40. Kc5 {[%clk 0:00:41.1]}
40... Ke4 {[%clk 0:00:04.8]} 41. Bc6 {[%clk 0:00:40.7]} 41... Kf3 {[%clk
0:00:03.1]} 42. Bxd5+ {[%clk 0:00:40.9]} 1-0

[Event "Late-Titled-Tuesday-Blitz-March-26-2024"]
[Site "Chess.com"]
[Date "2024.03.26"]
[Round "2"]
[White "dropstoneDP"]
[Black "aghasiyevkamal"]
[Result "1-0"]
[WhiteElo "3016"]
[BlackElo "2646"]
[TimeControl "180+1"]
[EndTime "14:18:57 PDT"]
[Termination "dropstoneDP won on time"]

1. e4 {[%clk 0:02:59.9]} 1... c5 {[%clk 0:02:57.6]} 2. Nf3 {[%clk 0:02:59.8]}
2... d6 {[%clk 0:02:57.9]} 3. d4 {[%clk 0:02:59.6]} 3... cxd4 {[%clk 0:02:58.2]}
4. Nxd4 {[%clk 0:03:00.5]} 4... Nf6 {[%clk 0:02:58.5]} 5. Nc3 {[%clk 0:03:01]}
5... g6 {[%clk 0:02:59.1]} 6. Be3 {[%clk 0:03:00.3]} 6... Bg7 {[%clk 0:02:59.3]}
7. f3 {[%clk 0:02:59.6]} 7... O-O {[%clk 0:02:59.1]} 8. Qd2 {[%clk 0:02:58.8]}
8... Nc6 {[%clk 0:02:59.4]} 9. Bc4 {[%clk 0:02:58.1]} 9... Bd7 {[%clk
0:02:58.2]} 10. O-O-O {[%clk 0:02:57.8]} 10... Rc8 {[%clk 0:02:58.2]} 11. Nxc6
{[%clk 0:02:58.2]} 11... bxc6 {[%clk 0:02:52]} 12. h4 {[%clk 0:02:52]} 12... h5
{[%clk 0:02:34.8]} 13. g4 {[%clk 0:02:48.6]} 13... Qa5 {[%clk 0:02:29.4]} 14.
Bh6 {[%clk 0:02:37.5]} 14... d5 {[%clk 0:02:07.3]} 15. Bxg7 {[%clk 0:02:33.9]}
15... Kxg7 {[%clk 0:02:04.3]} 16. g5 {[%clk 0:02:32.3]} 16... Ne8 {[%clk
0:01:57.4]} 17. exd5 {[%clk 0:02:30.5]} 17... Nd6 {[%clk 0:01:55.3]} 18. Qd4+
{[%clk 0:02:28]} 18... Kg8 {[%clk 0:01:54.7]} 19. dxc6 {[%clk 0:02:22.6]} 19...
Bxc6 {[%clk 0:01:45]} 20. Bd5 {[%clk 0:02:22.9]} 20... Bxd5 {[%clk 0:01:40.1]}
21. Nxd5 {[%clk 0:02:21.2]} 21... Nf5 {[%clk 0:01:38.8]} 22. Qb4 {[%clk
0:01:45.2]} 22... Qxa2 {[%clk 0:01:37.2]} 23. Qa3 {[%clk 0:01:45.5]} 23... Qxa3
{[%clk 0:01:14.7]} 24. bxa3 {[%clk 0:01:46.4]} 24... Rc5 {[%clk 0:01:15.1]} 25.
Rhe1 {[%clk 0:01:41.6]} 25... Rfc8 {[%clk 0:01:08.5]} 26. Nxe7+ {[%clk
0:01:12.5]} 26... Nxe7 {[%clk 0:01:08]} 27. Rxe7 {[%clk 0:01:13.4]} 27... Rxc2+
{[%clk 0:01:08]} 28. Kb1 {[%clk 0:01:14.1]} 28... R2c3 {[%clk 0:01:03.8]} 29.
Rxa7 {[%clk 0:01:12.7]} 29... Rb8+ {[%clk 0:01:00.8]} 30. Ka2 {[%clk 0:01:10.5]}
30... Rxf3 {[%clk 0:00:59.9]} 31. Rad7 {[%clk 0:01:00.3]} 31... Rbb3 {[%clk
0:00:55.3]} 32. Ra7 {[%clk 0:00:58.2]} 32... Rbe3 {[%clk 0:00:53.8]} 33. Rd2
{[%clk 0:00:39.5]} 33... Re4 {[%clk 0:00:49.4]} 34. Rh2 {[%clk 0:00:35.9]} 34...
Rff4 {[%clk 0:00:39]} 35. Rb2 {[%clk 0:00:24.6]} 35... Rxh4 {[%clk 0:00:38.2]}
36. Rb8+ {[%clk 0:00:23.2]} 36... Kg7 {[%clk 0:00:38.3]} 37. Raa8 {[%clk
0:00:23.7]} 37... Re2+ {[%clk 0:00:14.7]} 38. Kb3 {[%clk 0:00:24]} 38... Re3+
{[%clk 0:00:15]} 39. Kc2 {[%clk 0:00:24.3]} 39... Rh2+ {[%clk 0:00:14.2]} 40.
Kd1 {[%clk 0:00:24.1]} 40... Rd3+ {[%clk 0:00:06]} 41. Ke1 {[%clk 0:00:24.4]}
1-0

[Event "Late-Titled-Tuesday-Blitz-March-26-2024"]
[Site "Chess.com"]
[Date "2024.03.26"]
[Round "2"]
[White "jstopa4"]
[Black "PenguinPacks"]
[Result "1-0"]
[WhiteElo "2743"]
[BlackElo "2407"]
[TimeControl "180+1"]
[EndTime "14:18:57 PDT"]
[Termination "jstopa4 won on time"]

1. d4 {[%clk 0:02:59.2]} 1... d5 {[%clk 0:03:00]} 2. c4 {[%clk 0:02:59.2]} 2...
e6 {[%clk 0:03:00.7]} 3. Nf3 {[%clk 0:02:59.2]} 3... Be7 {[%clk 0:03:01.1]} 4.
Nc3 {[%clk 0:02:58.7]} 4... Nf6 {[%clk 0:03:01.4]} 5. Bf4 {[%clk 0:02:58.9]}
5... O-O {[%clk 0:03:00.4]} 6. e3 {[%clk 0:02:58.8]} 6... b6 {[%clk 0:03:01]} 7.
cxd5 {[%clk 0:02:38.6]} 7... Nxd5 {[%clk 0:03:01.9]} 8. Nxd5 {[%clk 0:02:37.3]}
8... Qxd5 {[%clk 0:03:02.8]} 9. a3 {[%clk 0:02:33.4]} 9... c5 {[%clk 0:01:59.9]}
10. dxc5 {[%clk 0:02:32.9]} 10... Qxc5 {[%clk 0:02:00.8]} 11. Rc1 {[%clk
0:02:29.3]} 11... Qa5+ {[%clk 0:02:00.4]} 12. Qd2 {[%clk 0:02:29.3]} 12... Qxd2+
{[%clk 0:01:56.7]} 13. Nxd2 {[%clk 0:02:15.2]} 13... Ba6 {[%clk 0:01:48.9]} 14.
Bxa6 {[%clk 0:01:45.8]} 14... Nxa6 {[%clk 0:01:49.8]} 15. Ke2 {[%clk 0:01:46.5]}
15... Rac8 {[%clk 0:01:41.4]} 16. b4 {[%clk 0:01:43.8]} 16... f6 {[%clk
0:01:35]} 17. e4 {[%clk 0:01:38.3]} 17... e5 {[%clk 0:01:33.5]} 18. Be3 {[%clk
0:01:38.8]} 18... Nc7 {[%clk 0:01:34.1]} 19. Nb1 {[%clk 0:01:21.6]} 19... Rfd8
{[%clk 0:01:16.6]} 20. Rc4 {[%clk 0:01:12]} 20... Ne6 {[%clk 0:01:07.7]} 21.
Rhc1 {[%clk 0:01:11.1]} 21... Rxc4 {[%clk 0:01:02.3]} 22. Rxc4 {[%clk
0:01:11.1]} 22... Kf7 {[%clk 0:01:00.2]} 23. Nc3 {[%clk 0:01:07.2]} 23... Ke8
{[%clk 0:00:57.9]} 24. Nd5 {[%clk 0:01:03]} 24... Bd6 {[%clk 0:00:57.4]} 25. g3
{[%clk 0:00:58.4]} 25... Kd7 {[%clk 0:00:55.7]} 26. Kd3 {[%clk 0:00:57]} 26...
Rc8 {[%clk 0:00:18.6]} 27. a4 {[%clk 0:00:55.5]} 27... Rxc4 {[%clk 0:00:16.3]}
28. Kxc4 {[%clk 0:00:56]} 28... Nc7 {[%clk 0:00:16.3]} 29. Nc3 {[%clk
0:00:56.4]} 29... Kc6 {[%clk 0:00:14.9]} 30. h4 {[%clk 0:00:52.8]} 30... a6
{[%clk 0:00:13.8]} 31. b5+ {[%clk 0:00:53.1]} 31... axb5+ {[%clk 0:00:12.7]} 32.
axb5+ {[%clk 0:00:54]} 32... Kb7 {[%clk 0:00:12.7]} 33. Nd5 {[%clk 0:00:54.4]}
33... Na8 {[%clk 0:00:12.9]} 34. h5 {[%clk 0:00:52.9]} 34... Bf8 {[%clk
0:00:12.6]} 35. h6 {[%clk 0:00:50.1]} 35... gxh6 {[%clk 0:00:09.1]} 36. Nxf6
{[%clk 0:00:50.4]} 36... Nc7 {[%clk 0:00:08.3]} 37. Nd7 {[%clk 0:00:47.1]} 37...
Bg7 {[%clk 0:00:06.6]} 38. Nxb6 {[%clk 0:00:44.3]} 38... Ne6 {[%clk 0:00:06.9]}
39. Nd5 {[%clk 0:00:42.2]} 39... Ng5 {[%clk 0:00:06.6]} 40. Kd3 {[%clk
0:00:39.9]} 40... Nf3 {[%clk 0:00:06.1]} 41. Ne7 {[%clk 0:00:37.3]} 41... h5
{[%clk 0:00:05.4]} 42. Nf5 {[%clk 0:00:37.6]} 42... Bf6 {[%clk 0:00:05.6]} 43.
Ke2 {[%clk 0:00:35.8]} 43... Ng1+ {[%clk 0:00:05]} 44. Kd3 {[%clk 0:00:36.3]}
44... Nf3 {[%clk 0:00:05.3]} 45. Bc5 {[%clk 0:00:36.4]} 45... h4 {[%clk
0:00:04.4]} 46. Ke2 {[%clk 0:00:31.5]} 1-0